bitfinex/quotes_ETHUSD_20230103
["timestamp","ask_amount","ask_price","bid_price","bid_amount"]
[1672708196532,22.17832889,1216.0,1215.9,0.68537867]
[1672708196953,17.87289754,1216.0,1215.9,0.68537867]
[1672708197183,22.17839098,1216.0,1215.9,0.68537867]
[1672708198656,31.18348284,1216.0,1215.9,0.68537867]
[1672708199096,47.63084284,1216.0,1215.9,0.68537867]
[1672708199735,49.45484284,1216.0,1215.9,0.68537867]
[1672708199924,44.36793754,1216.0,1215.9,0.68537867]
[1672708200142,50.47504544,1216.0,1215.9,0.68537867]
[1672708200346,54.93966057,1216.0,1215.9,0.68537867]
[1672708200815,50.47504544,1216.0,1215.9,0.68537867]
[1672708201193,44.36793754,1216.0,1215.9,0.68537867]
[1672708201655,50.47504544,1216.0,1215.9,0.68537867]
[1672708201832,50.47504544,1216.0,1215.9,0.68321431]
[1672708202038,44.36793754,1216.0,1215.9,0.68321431]
[1672708202249,50.47504544,1216.0,1215.9,0.68321431]
[1672708202934,44.36793754,1216.0,1215.9,0.68321431]
[1672708203129,50.47504544,1216.0,1215.9,0.68321431]
[1672708203287,44.36793754,1216.0,1215.9,0.68321431]
[1672708203841,49.45443533,1216.0,1215.9,0.68321431]
[1672708206075,44.36793754,1216.0,1215.9,0.68321431]
[1672708206651,50.47504544,1216.0,1215.9,0.68321431]
[1672708212552,45.47504544,1216.0,1215.9,0.68321431]
[1672708213407,45.47504544,1216.0,1215.9,1.66294059]
[1672708213783,50.47504544,1216.0,1215.9,1.66294059]
[1672708213984,49.85754544,1216.0,1215.9,1.66294059]
[1672708215387,41.63386544,1216.0,1215.9,1.66294059]
[1672708215599,49.85754544,1216.0,1215.9,1.66294059]
[1672708215807,48.03354544,1216.0,1215.9,1.66294059]
[1672708216651,48.03109808,1216.0,1215.9,1.66294059]
[1672708217453,39.80741808,1216.0,1215.9,1.66294059]
[1672708221329,23.13005808,1216.0,1215.9,1.66294059]
[1672708221518,17.02295018,1216.0,1215.9,1.66294059]
[1672708222128,23.13005808,1216.0,1215.9,1.66294059]
[1672708222675,23.36005808,1216.0,1215.9,1.66294059]
[1672708222889,22.34841745,1216.0,1215.9,1.66294059]
[1672708223291,25.47663018,1216.0,1215.9,1.66294059]
[1672708223502,33.70031018,1216.0,1215.9,1.66294059]
[1672708223709,25.47663018,1216.0,1215.9,1.66294059]
[1672708223927,17.25295018,1216.0,1215.9,1.66294059]
[1672708224693,31.58373808,1216.0,1215.9,1.66294059]
[1672708233059,17.25295018,1216.0,1215.9,1.66294059]
[1672708235296,23.36005808,1216.0,1215.9,1.66294059]
[1672708236269,18.36005808,1216.0,1215.9,1.66294059]
[1672708237158,23.36005808,1216.0,1215.9,1.66294059]
[1672708237363,23.36005808,1216.0,1215.9,1.66014174]
[1672708237574,48.03109808,1216.0,1215.9,1.66014174]
[1672708237827,41.92399018,1216.0,1215.9,1.66014174]
[1672708241369,33.70031018,1216.0,1215.9,1.66014174]
[1672708244630,28.70031018,1216.0,1215.9,1.66014174]
[1672708245832,20.47663018,1216.0,1215.9,1.66014174]
[1672708246456,33.70031018,1216.0,1215.9,1.66014174]
[1672708247081,41.92399018,1216.0,1215.9,1.66014174]
[1672708247409,42.54149018,1216.0,1215.9,1.66014174]
[1672708261245,42.54149018,1216.0,1215.9,1.65779349]
[1672708269679,37.54149018,1216.0,1215.9,1.65779349]
[1672708270621,42.54149018,1216.0,1215.9,1.65779349]
[1672708273994,17.87045018,1216.0,1215.9,1.65779349]
[1672708274463,41.92399018,1216.0,1215.9,1.65779349]
[1672708276670,23.37559522,1216.0,1215.9,1.65779349]
[1672708277617,36.0444697,1216.0,1215.9,1.65779349]
[1672708277827,44.2681497,1216.0,1215.9,1.65779349]
[1672708278189,50.39126517,1216.0,1215.9,1.65779349]
[1672708278409,44.2681497,1216.0,1215.9,1.65779349]
[1672708278972,50.39114389,1216.0,1215.9,1.65779349]
[1672708279559,31.59962437,1216.0,1215.9,1.65779349]
[1672708282632,23.37594437,1216.0,1215.9,1.65779349]
[1672708283044,23.37594437,1216.0,1215.9,1.65455197]
[1672708284535,39.82330437,1216.0,1215.9,1.65455197]
[1672708287302,48.04698437,1216.0,1215.9,1.65455197]
[1672708288429,39.82330437,1216.0,1215.9,1.65455197]
[1672708288854,48.04698437,1216.0,1215.9,1.65455197]
[1672708289275,39.82330437,1216.0,1215.9,1.65455197]
[1672708289911,48.04698437,1216.0,1215.9,1.65455197]
[1672708290221,23.37594437,1216.0,1215.9,1.65455197]
[1672708291098,31.59962437,1216.0,1215.9,1.65455197]
[1672708292843,23.37594437,1216.0,1215.9,1.65455197]
[1672708296498,15.20362901,1216.0,1215.9,1.65455197]
[1672708303636,15.20362901,1216.0,1215.9,1.65077342]
[1672708303991,10.20362901,1216.0,1215.9,1.65077342]
[1672708304451,30.79985015,1216.0,1215.9,1.65077342]
[1672708304684,31.82330437,1216.0,1215.9,1.65077342]
[1672708304894,36.82330437,1216.0,1215.9,1.65077342]
[1672708305571,45.04698437,1216.0,1215.9,1.65077342]
[1672708306055,36.82330437,1216.0,1215.9,1.65077342]
[1672708306526,45.04698437,1216.0,1215.9,1.65077342]
[1672708308390,37.44080437,1216.0,1215.9,1.65077342]
[1672708309313,45.66448437,1216.0,1215.9,1.65077342]
[1672708313414,37.44080437,1216.0,1215.9,1.65077342]
[1672708313727,39.54149018,1216.0,1215.9,1.65077342]
[1672708325456,39.54149018,1216.0,1215.9,1.64861928]
[1672708326612,45.6577233,1216.0,1215.9,1.64861928]
[1672708327093,20.1391833,1216.0,1215.9,1.64861928]
[1672708327304,19.12002846,1216.0,1215.9,1.64861928]
[1672708328382,19.12009476,1216.0,1215.9,1.64861928]
[1672708328550,27.57377476,1216.0,1215.9,1.64861928]
[1672708329128,22.47663018,1216.0,1215.9,1.64861928]
[1672708329919,27.57351049,1216.0,1215.9,1.64861928]
[1672708330129,22.47663018,1216.0,1215.9,1.64861928]
[1672708330665,27.5734183,1216.0,1215.9,1.64861928]
[1672708331211,22.47663018,1216.0,1215.9,1.64861928]
[1672708331838,28.5928633,1216.0,1215.9,1.64861928]
[1672708332227,22.47663018,1216.0,1215.9,1.64861928]
[1672708332461,28.5928633,1216.0,1215.9,1.64861928]
[1672708332697,22.47663018,1216.0,1215.9,1.64861928]
[1672708333267,28.5928633,1216.0,1215.9,1.64861928]
[1672708335012,23.5928633,1216.0,1215.9,1.64861928]
[1672708335968,28.5928633,1216.0,1215.9,1.64861928]
[1672708336960,36.8165433,1216.0,1215.9,1.64861928]
[1672708338226,45.0402233,1216.0,1215.9,1.64861928]
[1672708338438,38.92399018,1216.0,1215.9,1.64861928]
[1672708338693,39.54149018,1216.0,1215.9,1.64861928]
[1672708340567,42.54149018,1216.0,1215.9,1.64861928]
[1672708350182,42.54149018,1216.0,1215.9,1.64509761]
[1672708360619,46.09420825,1216.0,1215.9,1.64509761]
[1672708360838,47.92720825,1216.0,1215.9,1.64509761]
[1672708364476,46.09420825,1216.0,1215.9,1.64509761]
[1672708364728,14.02295018,1216.0,1215.9,1.64509761]
[1672708365370,20.13751839,1216.0,1215.9,1.64509761]
[1672708365994,28.36119839,1216.0,1215.9,1.64509761]
[1672708367479,28.59119839,1216.0,1215.9,1.64509761]
[1672708372181,28.59119839,1216.0,1215.9,1.64164377]
[1672708374030,45.03855839,1216.0,1215.9,1.64164377]
[1672708375066,38.92399018,1216.0,1215.9,1.64164377]
[1672708380589,45.04296498,1216.0,1215.9,1.64164377]
[1672708381218,45.04496498,1216.0,1215.9,1.64164377]
[1672708381427,40.04296498,1216.0,1215.9,1.64164377]
[1672708382062,45.04296498,1216.0,1215.9,1.64164377]
[1672708386298,20.37192498,1216.0,1215.9,1.64164377]
[1672708387563,28.59560498,1216.0,1215.9,1.64164377]
[1672708388216,45.04296498,1216.0,1215.9,1.64164377]
[1672708388428,45.04256406,1216.0,1215.9,1.64164377]
[1672708390353,36.81888406,1216.0,1215.9,1.64164377]
[1672708393078,28.59520406,1216.0,1215.9,1.64164377]
[1672708395640,28.59520406,1216.0,1215.9,1.63775945]
[1672708397822,20.37152406,1216.0,1215.9,1.63775945]
[1672708398661,28.59520406,1216.0,1215.9,1.63775945]
[1672708398993,28.59520406,1216.0,1215.9,1.58775945]
[1672708399888,36.81888406,1216.0,1215.9,1.58775945]
[1672708402140,14.25295018,1216.0,1215.9,1.58775945]
[1672708402285,20.37152406,1216.0,1215.9,1.58775945]
[1672708402815,14.25295018,1216.0,1215.9,1.58775945]
[1672708403027,20.37152406,1216.0,1215.9,1.58775945]
[1672708406821,14.25295018,1216.0,1215.9,1.58775945]
[1672708407383,19.35543821,1216.0,1215.9,1.58775945]
[1672708408603,20.37152406,1216.0,1215.9,1.58775945]
[1672708409377,14.25295018,1216.0,1215.9,1.58775945]
[1672708409799,14.97562606,1216.0,1215.9,3.58445827]
[1672708410009,14.19227737,1216.0,1215.9,36.63817339]
[1672708410223,9.87408904,1216.0,1215.9,32.26819088]
[1672708410435,9.87408904,1216.0,1215.9,36.73322433]
[1672708411063,9.87408904,1216.0,1215.9,32.26819088]
[1672708412646,4.94008904,1216.1,1216.0,4.0]
[1672708412857,10.10408904,1216.1,1216.0,35.95085909]
[1672708413017,10.10408904,1216.1,1216.0,36.04712788]
[1672708413498,10.10408904,1216.1,1216.0,36.93640189]
[1672708413897,10.10408904,1216.1,1216.0,24.71272189]
[1672708418020,10.10408904,1216.1,1216.0,22.88672189]
[1672708418752,10.10408904,1216.1,1216.0,31.11040189]
[1672708419587,9.87408904,1216.1,1216.0,31.11040189]
[1672708419741,9.87408904,1216.1,1216.0,32.93940189]
[1672708421422,9.87408904,1216.1,1216.0,24.71572189]
[1672708422640,9.87408904,1216.1,1216.0,24.71252554]
[1672708424371,9.8712,1216.1,1216.0,24.71252554]
[1672708425703,0.066,1216.2,1216.0,24.71252554]
[1672708425704,4.9372,1216.2,1216.0,24.71252554]
[1672708425871,4.8712,1216.2,1216.1,1.826]
[1672708426078,5.1012,1216.2,1216.1,1.826]
[1672708426511,10.1012,1216.2,1216.1,1.826]
[1672708431274,11.62798894,1216.2,1216.1,1.826]
[1672708431485,44.06124008,1216.2,1216.0,0.9855428]
[1672708431637,47.65503502,1216.1,1216.0,0.88927401]
[1672708432019,54.42409369,1216.1,1216.0,0.88927401]
[1672708433484,56.23909369,1216.1,1216.0,0.88927401]
[1672708445166,56.23909369,1216.1,1216.0,0.88574074]
[1672708448714,51.23909369,1216.1,1216.0,0.88574074]
[1672708449606,56.23909369,1216.1,1216.0,0.88574074]
[1672708458093,51.23909369,1216.1,1216.0,0.88574074]
[1672708459192,56.23909369,1216.1,1216.0,0.88574074]
[1672708461002,52.23909369,1216.1,1216.0,0.88574074]
[1672708463371,51.62169369,1216.1,1216.0,0.88574074]
[1672708466405,45.50311981,1216.1,1216.0,0.88574074]
[1672708468086,45.50311981,1216.1,1216.0,0.88245964]
[1672708475806,40.50311981,1216.1,1216.0,0.88245964]
[1672708476630,45.50311981,1216.1,1216.0,0.88245964]
[1672708482581,40.50311981,1216.1,1216.0,0.88245964]
[1672708483056,45.50311981,1216.1,1216.0,0.88245964]
[1672708485268,45.50003951,1216.1,1216.0,0.88245964]
[1672708488882,49.96629081,1216.1,1216.0,0.88245964]
[1672708489098,4.8712,1215.9,1215.7,8.63006879]
[1672708489341,33.92515114,1215.8,1215.7,8.63006879]
[1672708489966,33.92515114,1215.8,1215.7,0.09626879]
[1672708490185,38.92515114,1215.8,1215.4,14.05036879]
[1672708490459,9.96945196,1215.6,1215.4,10.05036879]
[1672708490719,0.23,1215.5,1215.4,11.15495948]
[1672708491315,0.23,1215.5,1215.4,3.03385948]
[1672708491524,10.1012,1215.5,1215.4,2.93759069]
[1672708495768,10.1012,1215.5,1215.4,6.93759069]
[1672708496001,10.1012,1215.5,1215.4,7.03385948]
[1672708496234,10.1012,1215.5,1215.4,31.71707948]
[1672708496382,10.1012,1215.5,1215.4,31.9694633]
[1672708497311,0.23,1215.5,1215.4,31.9694633]
[1672708497846,0.23,1215.6,1215.4,31.9694633]
[1672708498067,0.23,1215.6,1215.5,1.833]
[1672708498278,10.1012,1215.6,1215.5,5.21324633]
[1672708498514,10.1012,1215.6,1215.5,5.30951512]
[1672708500670,10.1012,1215.6,1215.5,13.53657512]
[1672708500889,10.1012,1215.6,1215.5,5.30951512]
[1672708502848,10.1012,1215.6,1215.5,1.92926879]
[1672708503068,15.19945196,1215.6,1215.5,1.833]
[1672708503283,10.1012,1215.6,1215.5,1.833]
[1672708503622,10.1012,1215.6,1215.4,11.2140433]
[1672708504086,14.25006114,1215.6,1215.4,11.2140433]
[1672708504992,14.25006114,1215.6,1215.4,19.4415633]
[1672708509552,10.1012,1215.6,1215.5,5.833]
[1672708509762,10.1012,1215.6,1215.5,33.13790512]
[1672708510295,10.1012,1215.6,1215.5,24.91084512]
[1672708510522,10.1012,1215.6,1215.5,24.90853916]
[1672708512383,10.1012,1215.6,1215.5,33.13559916]
[1672708512846,10.1012,1215.6,1215.5,24.90853916]
[1672708513067,10.1012,1215.6,1215.5,39.63230804]
[1672708513068,5.0,1215.6,1215.5,39.63230804]
[1672708513394,5.0,1215.6,1215.5,35.22098298]
[1672708514067,0.066,1215.7,1215.5,35.22098298]
[1672708514278,4.934,1215.8,1215.6,3.666]
[1672708514651,4.934,1215.8,1215.7,1.833]
[1672708514845,9.934,1215.8,1215.7,1.833]
[1672708515144,10.164,1215.8,1215.7,1.833]
[1672708521611,5.164,1215.8,1215.7,1.833]
[1672708522709,10.164,1215.8,1215.7,1.833]
[1672708528563,5.164,1215.8,1215.7,1.833]
[1672708529783,10.164,1215.8,1215.7,1.833]
[1672708531248,10.164,1215.8,1215.7,1.82919649]
[1672708532671,10.164,1215.8,1215.6,30.38280091]
[1672708535778,5.164,1215.8,1215.6,30.38280091]
[1672708539137,5.164,1215.8,1215.6,22.15645091]
[1672708540663,5.164,1215.8,1215.6,13.93010091]
[1672708541176,5.164,1215.8,1215.6,5.70375091]
[1672708541390,5.164,1215.8,1215.6,10.40800261]
[1672708545126,5.164,1215.8,1215.6,18.63439261]
[1672708548025,5.164,1215.8,1215.6,10.40800261]
[1672708549300,10.26225196,1215.8,1215.6,10.40800261]
[1672708550136,10.259409,1215.8,1215.6,10.40800261]
[1672708550391,10.259409,1215.8,1215.6,13.3469105]
[1672708556437,10.259409,1215.8,1215.6,11.5139105]
[1672708571607,9.93115704,1215.7,1215.6,11.5139105]
[1672708572664,9.93115704,1215.7,1215.6,8.57274234]
[1672708573407,9.93115704,1215.7,1215.6,25.02552234]
[1672708573931,5.22715704,1215.8,1215.6,16.79913234]
[1672708574081,5.16115704,1215.8,1215.6,16.79913234]
[1672708575236,10.259409,1215.8,1215.6,16.79913234]
[1672708575494,10.259409,1215.8,1215.6,19.73773321]
[1672708577633,10.259409,1215.8,1215.6,16.79913234]
[1672708577865,6.94515704,1215.7,1215.6,0.09626879]
[1672708578019,6.94515704,1215.7,1215.4,19.4417333]
[1672708578231,15.17086704,1215.7,1215.4,11.2140433]
[1672708578490,20.886719,1215.7,1215.4,11.2140433]
[1672708578966,20.269119,1215.7,1215.4,11.2140433]
[1672708579434,20.269119,1215.7,1215.4,19.4417633]
[1672708579822,12.043409,1215.7,1215.4,19.4417633]
[1672708580235,12.661009,1215.7,1215.4,27.6695033]
[1672708580912,12.661009,1215.7,1215.4,35.8972433]
[1672708583037,5.77875704,1215.7,1215.4,35.8972433]
[1672708585802,5.16115704,1215.7,1215.4,35.8972433]
[1672708586012,4.93115704,1215.7,1215.4,35.8972433]
[1672708588081,4.99715704,1215.8,1215.5,4.0]
[1672708588217,4.93115704,1215.8,1215.6,8.22639]
[1672708588431,4.93115704,1215.8,1215.6,16.54904879]
[1672708588432,9.93115704,1215.7,1215.6,16.54904879]
[1672708589226,9.93115704,1215.7,1215.6,28.2565416]
[1672708591798,9.93115704,1215.7,1215.6,20.0301516]
[1672708592444,4.93115704,1215.7,1215.6,20.0301516]
[1672708593505,9.93115704,1215.7,1215.6,20.0301516]
[1672708593723,9.93115704,1215.7,1215.6,20.02694736]
[1672708596266,9.93115704,1215.7,1215.6,8.31945455]
[1672708596631,10.16115704,1215.7,1215.6,0.09626879]
[1672708596839,15.877009,1215.7,1215.5,0.09626879]
[1672708597110,6.94515704,1215.6,1215.5,8.22706]
[1672708597423,6.94515704,1215.6,1215.5,8.32332879]
[1672708598471,11.94515704,1215.6,1215.5,8.32332879]
[1672708600091,10.16115704,1215.6,1215.5,8.32332879]
[1672708602388,10.16115704,1215.6,1215.5,0.09626879]
[1672708602720,10.16115704,1215.6,1215.4,24.73120261]
[1672708602871,10.16115704,1215.6,1215.4,28.5847303]
[1672708603299,10.16115704,1215.6,1215.4,36.8124703]
[1672708603549,10.16115704,1215.6,1215.4,28.5847303]
[1672708606281,10.16115704,1215.6,1215.4,20.3573503]
[1672708606699,19.40827014,1215.6,1215.4,0.09626879]
[1672708606946,9.93115704,1215.5,1215.3,0.7431543]
[1672708607143,9.93115704,1215.5,1215.3,8.9715243]
[1672708607475,9.93115704,1215.5,1215.3,25.77701691]
[1672708607690,9.93115704,1215.5,1215.3,29.9908146]
[1672708610490,9.93115704,1215.5,1215.3,21.7623946]
[1672708611877,9.93115704,1215.5,1215.3,29.9908146]
[1672708614794,9.93115704,1215.5,1215.3,29.98759976]
[1672708615887,4.99715704,1215.6,1215.3,29.98759976]
[1672708616142,4.93115704,1215.6,1215.4,4.0]
[1672708616348,4.93115704,1215.6,1215.5,8.22706]
[1672708616568,10.16115704,1215.6,1215.5,8.32332879]
[1672708621874,5.16115704,1215.6,1215.5,8.32332879]
[1672708623191,10.16115704,1215.6,1215.5,0.09626879]
[1672708623400,10.16115704,1215.6,1215.4,16.55077879]
[1672708624029,5.0,1215.5,1215.4,25.79095064]
[1672708628869,5.84485704,1215.6,1215.4,25.79095064]
[1672708629023,5.77885704,1215.6,1215.4,25.79095064]
[1672708630663,4.93115704,1215.6,1215.4,26.04333446]
[1672708635536,4.93115704,1215.6,1215.4,26.04020631]
[1672708642734,4.92799118,1215.6,1215.4,26.04020631]
[1672708647882,4.92999118,1215.6,1215.4,26.03720631]
[1672708648095,4.92799118,1215.6,1215.4,26.04020631]
[1672708650456,4.92799118,1215.6,1215.5,0.71101228]
[1672708650778,9.92799118,1215.6,1215.5,17.16513228]
[1672708650988,4.92799118,1215.6,1215.5,17.26140107]
[1672708651689,9.92799118,1215.6,1215.5,17.26140107]
[1672708653658,9.82799118,1215.6,1215.5,17.26140107]
[1672708654436,9.82799118,1215.6,1215.5,9.03434107]
[1672708658995,9.82799118,1215.6,1215.5,0.80728107]
[1672708659223,9.82799118,1215.6,1215.5,0.71101228]
[1672708659224,10.05799118,1215.6,1215.5,0.71101228]
[1672708664061,5.05799118,1215.6,1215.5,0.71101228]
[1672708665088,10.05799118,1215.6,1215.5,0.71101228]
[1672708665577,10.67569118,1215.6,1215.5,0.71101228]
[1672708672181,10.67569118,1215.6,1215.5,8.93807228]
[1672708672401,10.67569118,1215.6,1215.5,9.03434107]
[1672708673544,10.05799118,1215.6,1215.5,9.03434107]
[1672708675396,10.05799118,1215.6,1215.5,9.03090493]
[1672708675846,5.05799118,1215.6,1215.5,9.03090493]
[1672708676059,5.05799118,1215.6,1215.5,0.80384493]
[1672708676060,9.20685232,1215.6,1215.5,0.80384493]
[1672708676273,9.20685232,1215.6,1215.5,0.70757614]
[1672708677020,14.20685232,1215.6,1215.5,0.70757614]
[1672708681308,19.30510428,1215.6,1215.5,0.70757614]
[1672708681533,14.20685232,1215.6,1215.5,0.70757614]
[1672708681691,19.30510428,1215.6,1215.5,0.70757614]
[1672708681901,19.92280428,1215.6,1215.5,0.70757614]
[1672708689422,14.92280428,1215.6,1215.5,0.70757614]
[1672708690628,19.92280428,1215.6,1215.5,0.70757614]
[1672708694376,19.92480428,1215.6,1215.5,0.70757614]
[1672708694591,19.92280428,1215.6,1215.5,0.70757614]
[1672708696572,14.92280428,1215.6,1215.5,0.70757614]
[1672708696744,19.92280428,1215.6,1215.5,0.70757614]
[1672708699431,19.92046611,1215.6,1215.5,0.70470462]
[1672708702791,14.92046611,1215.6,1215.5,0.70470462]
[1672708703997,19.92046611,1215.6,1215.5,0.70470462]
[1672708707785,14.82221415,1215.6,1215.5,0.70470462]
[1672708707939,37.3928965,1215.6,1215.5,0.70470462]
[1672708708498,29.1665065,1215.6,1215.5,0.70470462]
[1672708710394,47.4522865,1215.6,1215.5,0.70470462]
[1672708710610,47.58801925,1215.6,1215.5,0.70470462]
[1672708711939,43.15138415,1215.6,1215.5,0.70470462]
[1672708713226,49.24444099,1215.6,1215.5,0.70470462]
[1672708713460,4.82565301,1215.4,1215.3,1.49937546]
[1672708713619,19.28258422,1215.4,1215.3,1.49937546]
[1672708715249,35.73806422,1215.4,1215.3,1.49937546]
[1672708715438,44.58360422,1215.4,1215.3,1.49937546]
[1672708715845,36.35586422,1215.4,1215.3,1.49937546]
[1672708718030,38.17086422,1215.4,1215.3,1.49937546]
[1672708720191,29.94312422,1215.4,1215.3,1.49937546]
[1672708721301,21.71538422,1215.4,1215.3,1.49937546]
[1672708722814,21.71538422,1215.4,1215.3,1.49721309]
[1672708723126,16.63731415,1215.4,1215.3,1.49721309]
[1672708724120,11.63731415,1215.4,1215.3,1.49721309]
[1672708725183,16.63731415,1215.4,1215.3,1.49721309]
[1672708725431,16.01951415,1215.4,1215.3,1.49721309]
[1672708725841,14.20451415,1215.4,1215.3,1.49721309]
[1672708727628,14.15451415,1215.4,1215.3,1.49721309]
[1672708731159,9.15451415,1215.4,1215.3,1.49721309]
[1672708731517,17.38225415,1215.4,1215.3,1.49721309]
[1672708732730,22.38225415,1215.4,1215.3,1.49721309]
[1672708733304,27.46032422,1215.4,1215.3,1.49721309]
[1672708736305,19.23258422,1215.4,1215.3,1.49721309]
[1672708736520,14.15451415,1215.4,1215.3,1.49721309]
[1672708737331,19.23258422,1215.4,1215.3,1.49721309]
[1672708738311,29.29332422,1215.4,1215.3,1.49721309]
[1672708738461,24.29332422,1215.4,1215.3,1.49721309]
[1672708739146,29.29332422,1215.4,1215.3,1.49721309]
[1672708739770,46.36660422,1215.4,1215.3,1.49721309]
[1672708740823,38.13886422,1215.4,1215.3,1.49721309]
[1672708742698,29.91112422,1215.4,1215.3,1.49721309]
[1672708743034,24.83305415,1215.4,1215.3,1.49721309]
[1672708743219,21.68338422,1215.4,1215.3,1.49721309]
[1672708743428,19.85038422,1215.4,1215.3,1.49721309]
[1672708743852,28.07812422,1215.4,1215.3,1.49721309]
[1672708745264,23.07812422,1215.4,1215.3,1.49721309]
[1672708745851,14.85038422,1215.4,1215.3,1.49721309]
[1672708746227,19.85038422,1215.4,1215.3,1.49721309]
[1672708746391,28.07812422,1215.4,1215.3,1.49721309]
[1672708747437,29.09311099,1215.4,1215.3,1.49721309]
[1672708748685,37.32085099,1215.4,1215.3,1.49721309]
[1672708751045,37.32085099,1215.4,1215.3,1.49403828]
[1672708751921,45.54859099,1215.4,1215.3,1.49403828]
[1672708752495,47.38159099,1215.4,1215.3,1.49403828]
[1672708754710,47.37909348,1215.4,1215.3,1.49403828]
[1672708755309,41.28603664,1215.4,1215.3,1.49403828]
[1672708755531,43.10303664,1215.4,1215.3,1.49403828]
[1672708755740,50.53967174,1215.4,1215.3,1.49403828]
[1672708756457,46.10303664,1215.4,1215.3,1.49403828]
[1672708756999,46.10303664,1215.4,1214.9,0.09626879]
[1672708757180,46.10303664,1215.4,1214.8,8.19556879]
[1672708757181,4.7731555,1215.0,1214.8,8.19556879]
[1672708757324,25.38379664,1215.0,1214.8,7.94556879]
[1672708757533,9.15201664,1214.9,1214.8,7.94556879]
[1672708757974,9.15201664,1214.9,1214.8,0.09626879]
[1672708758339,14.10201664,1214.9,1214.7,8.9755143]
[1672708758503,14.10201664,1214.9,1214.7,11.83573278]
[1672708759385,9.7731555,1214.8,1214.7,11.83573278]
[1672708759696,10.0031555,1214.8,1214.7,11.83573278]
[1672708761145,10.0031555,1214.8,1214.7,28.30069278]
[1672708762679,10.0031555,1214.8,1214.7,11.83573278]
[1672708762947,10.0031555,1214.8,1214.7,0.83942309]
[1672708763142,10.0031555,1214.8,1214.7,0.7431543]
[1672708764805,14.15201664,1214.8,1214.7,0.7431543]
[1672708767482,14.15201664,1214.8,1214.7,8.9756343]
[1672708767638,14.15201664,1214.8,1214.7,9.07190309]
[1672708767848,14.15201664,1214.8,1214.7,0.83942309]
[1672708768222,10.0031555,1214.8,1214.7,0.7431543]
[1672708768435,10.0031555,1214.8,1214.7,8.9756343]
[1672708768600,10.0031555,1214.8,1214.7,9.07190309]
[1672708768967,10.0031555,1214.8,1214.7,0.83942309]
[1672708769171,10.0031555,1214.8,1214.7,0.7431543]
[1672708771241,14.15201664,1214.8,1214.7,0.7431543]
[1672708771427,31.23371664,1214.8,1214.7,0.7431543]
[1672708771644,14.77011664,1214.8,1214.7,0.7431543]
[1672708778417,14.77011664,1214.8,1214.7,0.73999868]
[1672708780478,10.6212555,1214.8,1214.7,0.73999868]
[1672708780689,10.0031555,1214.8,1214.7,8.97247868]
[1672708780926,10.0031555,1214.8,1214.7,9.06874747]
[1672708781119,10.0031555,1214.8,1214.7,0.83626747]
[1672708781457,10.0031555,1214.8,1214.7,0.73999868]
[1672708781458,14.15201664,1214.8,1214.7,0.73999868]
[1672708782364,14.14987794,1214.8,1214.7,0.73999868]
[1672708783493,14.14987794,1214.8,1214.6,1.72299868]
[1672708783755,0.23,1214.7,1214.5,34.66066879]
[1672708783967,9.7731555,1214.6,1214.5,30.00335405]
[1672708784195,9.7751555,1214.6,1214.5,22.06245405]
[1672708784357,9.7731555,1214.6,1214.5,22.06545405]
[1672708786815,9.7731555,1214.6,1214.5,21.71545405]
[1672708786962,9.7231555,1214.6,1214.5,21.71545405]
[1672708787675,9.7231555,1214.6,1214.5,13.48194405]
[1672708790401,9.7231555,1214.6,1214.5,9.80573879]
[1672708790723,22.95337664,1214.6,1214.5,0.09626879]
[1672708791046,22.95337664,1214.6,1214.3,27.52669455]
[1672708791047,14.72021664,1214.6,1214.3,27.52669455]
[1672708791203,10.5713555,1214.6,1214.3,37.59488455]
[1672708791405,10.5713555,1214.6,1214.3,37.84726837]
[1672708791610,10.5713555,1214.6,1214.3,42.61390483]
[1672708793245,10.3413555,1214.6,1214.5,8.23384]
[1672708793398,10.3413555,1214.6,1214.5,8.33010879]
[1672708793775,10.3413555,1214.6,1214.5,0.09626879]
[1672708793985,10.3413555,1214.6,1214.4,18.38429879]
[1672708794203,10.3413555,1214.6,1214.4,22.93665427]
[1672708794358,10.3413555,1214.6,1214.4,31.17116427]
[1672708794556,10.3413555,1214.6,1214.4,31.42354809]
[1672708794977,9.7231555,1214.6,1214.5,1.833]
[1672708795308,9.7231555,1214.6,1214.5,18.55306382]
[1672708795513,9.7231555,1214.6,1214.5,13.74104942]
[1672708796546,9.7231555,1214.6,1214.5,5.50720942]
[1672708796815,9.7231555,1214.6,1214.5,13.74104942]
[1672708797142,9.7231555,1214.6,1214.5,21.97488942]
[1672708800075,9.7231555,1214.6,1214.5,30.20872942]
[1672708800644,9.7231555,1214.6,1214.5,13.74104942]
[1672708800920,9.7231555,1214.6,1214.5,2.18165261]
[1672708801068,9.7231555,1214.6,1214.5,2.08538382]
[1672708802579,9.7231555,1214.6,1214.5,0.25238382]
[1672708802993,9.7231555,1214.6,1214.4,1.82]
[1672708803249,17.9563955,1214.6,1214.4,1.82]
[1672708803454,9.7231555,1214.6,1214.3,29.59840837]
[1672708803644,9.7231555,1214.6,1214.3,41.26920921]
[1672708808462,9.7231555,1214.6,1214.3,39.44920921]
[1672708810557,17.9564155,1214.6,1214.3,22.97948921]
[1672708810767,17.9564155,1214.6,1214.3,14.74463921]
[1672708810768,18.5746155,1214.6,1214.3,14.74463921]
[1672708810998,26.8078755,1214.6,1214.3,14.74463921]
[1672708811228,4.14886114,1214.5,1214.3,3.15391455]
[1672708811573,4.7731555,1214.4,1214.3,19.52802576]
[1672708811880,4.7731555,1214.4,1214.3,27.85948455]
[1672708812089,9.7731555,1214.4,1214.3,27.85582692]
[1672708813448,9.7731555,1214.4,1214.3,19.62063692]
[1672708813665,9.7731555,1214.4,1214.3,27.64143161]
[1672708814828,9.7731555,1214.4,1214.3,11.17105161]
[1672708818394,9.7731555,1214.4,1214.3,8.38544692]
[1672708819484,13.92201664,1214.4,1214.3,0.15025692]
[1672708819702,39.98625853,1214.4,1214.1,0.7431543]
[1672708819847,4.0,1214.1,1213.7,0.189]
[1672708820228,4.0,1214.1,1213.6,0.099]
[1672708820229,4.7731555,1213.8,1213.6,0.099]
[1672708820370,0.066,1213.9,1213.7,5.35741073]
[1672708820580,5.5525,1214.0,1213.8,20.34324533]
[1672708820813,0.066,1214.1,1213.9,1.783]
[1672708821168,4.29193135,1214.3,1213.9,14.32287382]
[1672708821484,25.53128249,1214.2,1213.9,0.099]
[1672708821631,4.934,1214.0,1213.8,4.0]
[1672708821845,4.934,1214.0,1213.8,12.23853]
[1672708821846,9.70136114,1214.0,1213.8,12.23853]
[1672708822050,9.934,1213.9,1213.8,12.33753]
[1672708822644,5.0,1213.9,1213.8,25.64549382]
[1672708822790,5.0,1213.9,1213.8,27.46949382]
[1672708823001,5.0,1213.9,1213.8,31.8642302]
[1672708823793,5.0,1213.9,1213.8,31.8142302]
[1672708823961,5.0,1213.9,1213.8,40.0528102]
[1672708825107,5.066,1214.0,1213.8,40.0528102]